[Event "*** SCC Grand Prix: Titled Tuesday Blitz"]
[Site "Chess.com"]
[Date "2020.07.07"]
[Round "9"]
[White "FMJoseHerrera"]
[Black "Xeniya2005"]
[Result "0-1"]
[WhiteElo "2481"]
[BlackElo "2389"]
[TimeControl "180+1"]
[EndTime "11:47:13 PDT"]
[Termination "Xeniya2005 won on time"]

1. Nf3 {[%clk 0:03:00.9]} 1... d5 {[%clk 0:02:59.6]} 2. g3 {[%clk 0:03:01.8]}
2... c5 {[%clk 0:02:59.3]} 3. Bg2 {[%clk 0:03:02.7]} 3... Nc6 {[%clk 0:02:59]}
4. c4 {[%clk 0:03:03.6]} 4... d4 {[%clk 0:02:58.2]} 5. O-O {[%clk 0:03:02.1]}
5... g6 {[%clk 0:02:58.1]} 6. b4 {[%clk 0:03:02.1]} 6... Nxb4 {[%clk 0:02:56]}
7. e3 {[%clk 0:03:00.7]} 7... Nc6 {[%clk 0:02:54.6]} 8. exd4 {[%clk 0:03:00.4]}
8... cxd4 {[%clk 0:02:53.6]} 9. d3 {[%clk 0:03:00.2]} 9... Bg7 {[%clk
0:02:53.4]} 10. a4 {[%clk 0:02:59.1]} 10... Nf6 {[%clk 0:02:52.9]} 11. a5 {[%clk
0:02:58]} 11... a6 {[%clk 0:02:52.2]} 12. Bg5 {[%clk 0:02:54.6]} 12... O-O
{[%clk 0:02:51.7]} 13. Re1 {[%clk 0:02:52.4]} 13... Re8 {[%clk 0:02:50.6]} 14.
Nbd2 {[%clk 0:02:50.3]} 14... h6 {[%clk 0:02:48.4]} 15. Bxf6 {[%clk 0:02:44.6]}
15... Bxf6 {[%clk 0:02:46.8]} 16. Ne4 {[%clk 0:02:41.2]} 16... Bg7 {[%clk
0:02:46.3]} 17. Qa4 {[%clk 0:02:37.9]} 17... Qc7 {[%clk 0:02:43.3]} 18. h4
{[%clk 0:02:28.9]} 18... Bf5 {[%clk 0:02:39]} 19. Nfd2 {[%clk 0:02:17.3]} 19...
Ne5 {[%clk 0:02:29.1]} 20. Qb3 {[%clk 0:02:11.3]} 20... Rab8 {[%clk 0:02:27.3]}
21. Ra4 {[%clk 0:01:59.9]} 21... Nc6 {[%clk 0:02:25.5]} 22. Qb6 {[%clk
0:01:57.1]} 22... Qxb6 {[%clk 0:02:18.3]} 23. axb6 {[%clk 0:01:58]} 23... Ne5
{[%clk 0:02:17.5]} 24. Nc5 {[%clk 0:01:55.9]} 24... Nxd3 {[%clk 0:02:14.4]} 25.
Nxd3 {[%clk 0:01:49.1]} 25... Bxd3 {[%clk 0:02:15.3]} 26. Rc1 {[%clk 0:01:44.7]}
26... Rec8 {[%clk 0:02:10.6]} 27. c5 {[%clk 0:01:43.2]} 27... Bb5 {[%clk
0:02:09.4]} 28. Ra3 {[%clk 0:01:38.3]} 28... Bc6 {[%clk 0:02:08]} 29. Bh3 {[%clk
0:01:37.4]} 29... f5 {[%clk 0:02:05.1]} 30. h5 {[%clk 0:01:36.8]} 30... Kf7
{[%clk 0:02:02.3]} 31. hxg6+ {[%clk 0:01:36.2]} 31... Kxg6 {[%clk 0:02:03.2]}
32. Re1 {[%clk 0:01:32.9]} 32... Bf6 {[%clk 0:01:33.1]} 33. g4 {[%clk 0:01:16]}
33... fxg4 {[%clk 0:01:25.6]} 34. Bxg4 {[%clk 0:01:16.9]} 34... Rd8 {[%clk
0:01:24.6]} 35. Kh2 {[%clk 0:01:13.3]} 35... Rd5 {[%clk 0:01:19.3]} 36. Ra5
{[%clk 0:01:03.5]} 36... Rf8 {[%clk 0:01:02.3]} 37. Bf3 {[%clk 0:01:01.1]} 37...
Rg5 {[%clk 0:00:49.1]} 38. Bxc6 {[%clk 0:01:00.5]} 38... bxc6 {[%clk 0:00:49.2]}
39. f4 {[%clk 0:00:49.9]} 39... Rg4 {[%clk 0:00:42.5]} 40. Rxa6 {[%clk
0:00:49.8]} 40... e5 {[%clk 0:00:32.9]} 41. fxe5 {[%clk 0:00:41.9]} 41... Bg5
{[%clk 0:00:30.8]} 42. Ne4 {[%clk 0:00:41.1]} 42... Rf3 {[%clk 0:00:17.6]} 43.
Ng3 {[%clk 0:00:08.8]} 43... Rfxg3 {[%clk 0:00:13.2]} 44. b7 {[%clk 0:00:07.7]}
44... Rg2+ {[%clk 0:00:12.3]} 45. Kh1 {[%clk 0:00:07.6]} 45... Bf4 {[%clk
0:00:11.4]} 46. Rxc6+ {[%clk 0:00:08.5]} 46... Kh5 {[%clk 0:00:10.5]} 0-1

[Event "*** SCC Grand Prix: Titled Tuesday Blitz"]
[Site "Chess.com"]
[Date "2020.07.07"]
[Round "9"]
[White "Sacbutt"]
[Black "ThePatrick27"]
[Result "0-1"]
[WhiteElo "2302"]
[BlackElo "2502"]
[TimeControl "180+1"]
[EndTime "11:47:13 PDT"]
[Termination "ThePatrick27 won on time"]

1. e4 {[%clk 0:03:00.9]} 1... e5 {[%clk 0:02:58.9]} 2. Nf3 {[%clk 0:03:00.5]}
2... Nc6 {[%clk 0:02:59.4]} 3. Bc4 {[%clk 0:03:00.5]} 3... Bc5 {[%clk
0:02:58.7]} 4. c3 {[%clk 0:03:00.6]} 4... Nf6 {[%clk 0:02:58.6]} 5. d3 {[%clk
0:03:00.8]} 5... d6 {[%clk 0:02:58.5]} 6. a4 {[%clk 0:03:00.8]} 6... a6 {[%clk
0:02:58.7]} 7. h3 {[%clk 0:03:00.6]} 7... h6 {[%clk 0:02:58.3]} 8. O-O {[%clk
0:03:00.6]} 8... O-O {[%clk 0:02:58.4]} 9. Nbd2 {[%clk 0:03:00.8]} 9... Ba7
{[%clk 0:02:58]} 10. Re1 {[%clk 0:03:00.9]} 10... Be6 {[%clk 0:02:57.8]} 11. Qc2
{[%clk 0:02:56.4]} 11... Re8 {[%clk 0:02:51.6]} 12. Bxe6 {[%clk 0:02:55]} 12...
Rxe6 {[%clk 0:02:50.5]} 13. Nf1 {[%clk 0:02:51.5]} 13... d5 {[%clk 0:02:45.4]}
14. Ng3 {[%clk 0:02:36]} 14... Qd7 {[%clk 0:02:32.9]} 15. b3 {[%clk 0:02:25.8]}
15... Rd8 {[%clk 0:02:28.1]} 16. b4 {[%clk 0:02:09.9]} 16... dxe4 {[%clk
0:02:22.6]} 17. dxe4 {[%clk 0:02:09.8]} 17... Qd3 {[%clk 0:02:21]} 18. Ra2
{[%clk 0:02:08.7]} 18... Qxc2 {[%clk 0:02:19.3]} 19. Rxc2 {[%clk 0:02:08.3]}
19... Rd3 {[%clk 0:02:18.2]} 20. b5 {[%clk 0:01:54.3]} 20... axb5 {[%clk
0:02:14.8]} 21. axb5 {[%clk 0:01:55.2]} 21... Ne7 {[%clk 0:02:13.7]} 22. c4
{[%clk 0:01:48.2]} 22... Bc5 {[%clk 0:02:12.7]} 23. Be3 {[%clk 0:01:41.8]} 23...
Bxe3 {[%clk 0:02:10]} 24. Rxe3 {[%clk 0:01:42.7]} 24... Rxe3 {[%clk 0:02:06.2]}
25. fxe3 {[%clk 0:01:43.6]} 25... c5 {[%clk 0:02:05.3]} 26. Rd2 {[%clk
0:01:36.1]} 26... Ng6 {[%clk 0:02:02.7]} 27. Rd8+ {[%clk 0:01:33.3]} 27... Re8
{[%clk 0:02:01.2]} 28. Rxe8+ {[%clk 0:01:26.6]} 28... Nxe8 {[%clk 0:02:02.1]}
29. Nf5 {[%clk 0:01:24.8]} 29... f6 {[%clk 0:02:00.5]} 30. Nd2 {[%clk
0:01:18.5]} 30... b6 {[%clk 0:01:56.8]} 31. Nb1 {[%clk 0:01:17.9]} 31... Nf8
{[%clk 0:01:51.7]} 32. Nc3 {[%clk 0:01:13.4]} 32... Nd7 {[%clk 0:01:51.4]} 33.
Nd5 {[%clk 0:01:10]} 33... Kf7 {[%clk 0:01:51.2]} 34. Kf2 {[%clk 0:00:57.7]}
34... h5 {[%clk 0:01:50]} 35. g4 {[%clk 0:00:54.2]} 35... hxg4 {[%clk
0:01:46.1]} 36. hxg4 {[%clk 0:00:53.9]} 36... g6 {[%clk 0:01:46.7]} 37. Nfe7
{[%clk 0:00:53.6]} 37... Nd6 {[%clk 0:01:45.4]} 38. Kf3 {[%clk 0:00:46.5]} 38...
Nxc4 {[%clk 0:01:44.1]} 39. Nc8 {[%clk 0:00:45.6]} 39... Ke6 {[%clk 0:01:37.1]}
40. Nc7+ {[%clk 0:00:44.2]} 40... Kf7 {[%clk 0:01:36.6]} 41. Nd5 {[%clk
0:00:44.1]} 41... Nd2+ {[%clk 0:01:28.9]} 42. Ke2 {[%clk 0:00:34.8]} 42... Nxe4
{[%clk 0:01:28.4]} 43. Ncxb6 {[%clk 0:00:34.8]} 43... Nxb6 {[%clk 0:01:29.3]}
44. Nxb6 {[%clk 0:00:34.8]} 44... Nc3+ {[%clk 0:01:30]} 45. Kd3 {[%clk
0:00:35.4]} 45... Nxb5 {[%clk 0:01:30.9]} 46. Kc4 {[%clk 0:00:35.8]} 46... Nd6+
{[%clk 0:01:16.7]} 47. Kxc5 {[%clk 0:00:35.9]} 47... Ke6 {[%clk 0:01:17.4]} 48.
Nd5 {[%clk 0:00:19.5]} 48... Ne4+ {[%clk 0:01:16.3]} 49. Kc4 {[%clk 0:00:18]}
49... Nf2 {[%clk 0:01:14.5]} 50. g5 {[%clk 0:00:16.6]} 50... f5 {[%clk
0:01:09.6]} 51. Nc3 {[%clk 0:00:15.2]} 51... Nh3 {[%clk 0:01:08.8]} 52. e4
{[%clk 0:00:14.3]} 52... f4 {[%clk 0:01:06.9]} 53. Kd3 {[%clk 0:00:12.6]} 53...
Nxg5 {[%clk 0:01:06.8]} 54. Ke2 {[%clk 0:00:12.8]} 54... Nf7 {[%clk 0:01:04.9]}
55. Kf3 {[%clk 0:00:13.1]} 55... g5 {[%clk 0:01:04.2]} 56. Kg4 {[%clk
0:00:13.5]} 56... Kd6 {[%clk 0:00:58.4]} 57. Nd5 {[%clk 0:00:09.5]} 57... Kc5
{[%clk 0:00:57.7]} 58. Ne7 {[%clk 0:00:10]} 58... Kd4 {[%clk 0:00:57.4]} 59.
Nc6+ {[%clk 0:00:07.4]} 59... Kxe4 {[%clk 0:00:57.4]} 60. Ne7 {[%clk 0:00:06]}
60... f3 {[%clk 0:00:57]} 61. Kg3 {[%clk 0:00:05.5]} 61... Nh6 {[%clk
0:00:53.6]} 62. Nc6 {[%clk 0:00:04.6]} 62... Nf5+ {[%clk 0:00:51.7]} 63. Kf2
{[%clk 0:00:04.2]} 63... g4 {[%clk 0:00:51.9]} 64. Nb4 {[%clk 0:00:03.8]} 64...
g3+ {[%clk 0:00:51.6]} 65. Kf1 {[%clk 0:00:04.7]} 65... g2+ {[%clk 0:00:49.3]}
66. Kf2 {[%clk 0:00:04.3]} 66... Ne3 {[%clk 0:00:47.6]} 0-1

[Event "*** SCC Grand Prix: Titled Tuesday Blitz"]
[Site "Chess.com"]
[Date "2020.07.07"]
[Round "9"]
[White "quesfr"]
[Black "alexsergeyev"]
[Result "0-1"]
[WhiteElo "2203"]
[BlackElo "2348"]
[TimeControl "180+1"]
[EndTime "11:47:14 PDT"]
[Termination "alexsergeyev won by resignation"]

1. e4 {[%clk 0:03:00.9]} 1... e5 {[%clk 0:02:59.5]} 2. Nf3 {[%clk 0:03:00.1]}
2... Nf6 {[%clk 0:02:59.5]} 3. Nc3 {[%clk 0:02:55]} 3... Bb4 {[%clk 0:02:58.2]}
4. Nxe5 {[%clk 0:02:49.7]} 4... O-O {[%clk 0:02:57.5]} 5. Nd3 {[%clk 0:02:48]}
5... Bxc3 {[%clk 0:02:56.5]} 6. dxc3 {[%clk 0:02:48.9]} 6... Nxe4 {[%clk
0:02:56.5]} 7. Nf4 {[%clk 0:02:47.4]} 7... Re8 {[%clk 0:02:52.8]} 8. Be2 {[%clk
0:02:47.6]} 8... Nc6 {[%clk 0:02:51.6]} 9. O-O {[%clk 0:02:45.7]} 9... d6 {[%clk
0:02:51.3]} 10. Re1 {[%clk 0:02:34.5]} 10... Bf5 {[%clk 0:02:42.6]} 11. Bd3
{[%clk 0:02:22.3]} 11... Qd7 {[%clk 0:02:33.5]} 12. Nd5 {[%clk 0:02:03.2]} 12...
Bg6 {[%clk 0:02:20]} 13. f3 {[%clk 0:01:57.8]} 13... Nc5 {[%clk 0:02:18.6]} 14.
Be3 {[%clk 0:01:20.7]} 14... Nxd3 {[%clk 0:02:13]} 15. cxd3 {[%clk 0:01:20.2]}
15... Ne5 {[%clk 0:02:11.7]} 16. Nf4 {[%clk 0:01:14.2]} 16... Qb5 {[%clk
0:01:58.7]} 17. d4 {[%clk 0:01:03.5]} 17... Nc4 {[%clk 0:01:51.6]} 18. Bc1
{[%clk 0:00:58]} 18... Nxb2 {[%clk 0:01:38.4]} 19. Rxe8+ {[%clk 0:00:49.9]}
19... Rxe8 {[%clk 0:01:36.3]} 20. Qf1 {[%clk 0:00:43.5]} 20... Qxf1+ {[%clk
0:01:31.9]} 21. Kxf1 {[%clk 0:00:44.4]} 21... Nc4 {[%clk 0:01:30]} 22. h4 {[%clk
0:00:32.8]} 22... f6 {[%clk 0:01:01.7]} 23. Kf2 {[%clk 0:00:31.2]} 23... a5
{[%clk 0:00:57]} 24. a4 {[%clk 0:00:30.2]} 24... Bf7 {[%clk 0:00:52.1]} 25. Nd3
{[%clk 0:00:28.5]} 25... b6 {[%clk 0:00:49.3]} 26. Bf4 {[%clk 0:00:28.2]} 26...
h6 {[%clk 0:00:47.2]} 27. g4 {[%clk 0:00:26.2]} 27... g5 {[%clk 0:00:46.7]} 28.
hxg5 {[%clk 0:00:25.9]} 28... fxg5 {[%clk 0:00:46.5]} 29. Bg3 {[%clk 0:00:19.6]}
29... Re3 {[%clk 0:00:40.1]} 30. Rd1 {[%clk 0:00:17.5]} 30... Bd5 {[%clk
0:00:38.9]} 31. Ne1 {[%clk 0:00:16.7]} 31... Rxc3 {[%clk 0:00:38.1]} 32. f4
{[%clk 0:00:16.9]} 32... Nb2 {[%clk 0:00:30.1]} 33. Rd2 {[%clk 0:00:16.6]} 33...
Nc4 {[%clk 0:00:27.4]} 34. Rd1 {[%clk 0:00:16.3]} 34... Nb2 {[%clk 0:00:26.2]}
35. Rd2 {[%clk 0:00:16.2]} 35... Nxa4 {[%clk 0:00:26.6]} 36. fxg5 {[%clk
0:00:15.8]} 36... hxg5 {[%clk 0:00:27]} 37. Nd3 {[%clk 0:00:13.1]} 37... b5
{[%clk 0:00:26.3]} 38. Kg1 {[%clk 0:00:09.6]} 38... Bc4 {[%clk 0:00:22.9]} 39.
Bxd6 {[%clk 0:00:06.3]} 39... cxd6 {[%clk 0:00:21.8]} 40. Ne1 {[%clk 0:00:05.6]}
40... b4 {[%clk 0:00:21.2]} 41. Kf2 {[%clk 0:00:03.9]} 41... b3 {[%clk
0:00:19.2]} 42. Nf3 {[%clk 0:00:04.1]} 42... b2 {[%clk 0:00:18.6]} 43. Rxb2
{[%clk 0:00:04]} 43... Nxb2 {[%clk 0:00:17.7]} 44. Nxg5 {[%clk 0:00:04.6]} 44...
Nd3+ {[%clk 0:00:17.3]} 45. Ke3 {[%clk 0:00:04.2]} 45... a4 {[%clk 0:00:16.9]}
46. Kd2 {[%clk 0:00:04.3]} 46... Rc1 {[%clk 0:00:16.9]} 47. Ne4 {[%clk
0:00:03.4]} 47... a3 {[%clk 0:00:16.9]} 48. Nc3 {[%clk 0:00:03.6]} 48... a2
{[%clk 0:00:15.3]} 49. Nxa2 {[%clk 0:00:02.4]} 49... Bxa2 {[%clk 0:00:15.2]} 50.
Kxd3 {[%clk 0:00:03.3]} 0-1

[Event "*** SCC Grand Prix: Titled Tuesday Blitz"]
[Site "Chess.com"]
[Date "2020.07.07"]
[Round "9"]
[White "Falia-p"]
[Black "bugsbunny444"]
[Result "0-1"]
[WhiteElo "2309"]
[BlackElo "2482"]
[TimeControl "180+1"]
[EndTime "11:47:15 PDT"]
[Termination "bugsbunny444 won by checkmate"]

1. e4 {[%clk 0:03:00.9]} 1... c5 {[%clk 0:02:44]} 2. Nf3 {[%clk 0:03:00.3]} 2...
e6 {[%clk 0:02:43.9]} 3. d4 {[%clk 0:02:59.9]} 3... cxd4 {[%clk 0:02:42.4]} 4.
Nxd4 {[%clk 0:03:00.8]} 4... a6 {[%clk 0:02:42.7]} 5. Bd3 {[%clk 0:03:00.2]}
5... Nf6 {[%clk 0:02:41.9]} 6. O-O {[%clk 0:02:59.6]} 6... Qc7 {[%clk
0:02:42.5]} 7. Qe2 {[%clk 0:02:59.8]} 7... d6 {[%clk 0:02:42.6]} 8. c4 {[%clk
0:02:58.6]} 8... Nbd7 {[%clk 0:02:43.2]} 9. Nc3 {[%clk 0:02:58.3]} 9... Ne5
{[%clk 0:02:43.9]} 10. Bd2 {[%clk 0:02:53]} 10... b6 {[%clk 0:02:38.1]} 11. Rac1
{[%clk 0:02:52.3]} 11... Bb7 {[%clk 0:02:37]} 12. f4 {[%clk 0:02:39.8]} 12...
Nxd3 {[%clk 0:02:37.1]} 13. Qxd3 {[%clk 0:02:39.7]} 13... Be7 {[%clk 0:02:35]}
14. Kh1 {[%clk 0:02:38.7]} 14... O-O {[%clk 0:02:25.9]} 15. f5 {[%clk 0:02:38]}
15... Qd7 {[%clk 0:01:36]} 16. b3 {[%clk 0:02:06.1]} 16... Rad8 {[%clk
0:00:50.3]} 17. Rce1 {[%clk 0:01:51.2]} 17... Rfe8 {[%clk 0:00:15]} 18. Qh3
{[%clk 0:01:28.8]} 18... e5 {[%clk 0:00:06.3]} 19. Nf3 {[%clk 0:01:25.8]} 19...
b5 {[%clk 0:00:06.9]} 20. Nd5 {[%clk 0:01:21.5]} 20... bxc4 {[%clk 0:00:04.9]}
21. bxc4 {[%clk 0:01:20.4]} 21... Bxd5 {[%clk 0:00:03.3]} 22. cxd5 {[%clk
0:01:17.9]} 22... Rc8 {[%clk 0:00:03.2]} 23. Ng5 {[%clk 0:00:53.7]} 23... Rc2
{[%clk 0:00:02.4]} 24. Qd3 {[%clk 0:00:49.1]} 24... Rxa2 {[%clk 0:00:01.9]} 25.
Be3 {[%clk 0:00:43.9]} 25... Qb5 {[%clk 0:00:01.9]} 26. Qc3 {[%clk 0:00:38.7]}
26... h6 {[%clk 0:00:01.9]} 27. Nf3 {[%clk 0:00:33.4]} 27... Nxe4 {[%clk
0:00:01.8]} 28. Qc7 {[%clk 0:00:32.4]} 28... Qxd5 {[%clk 0:00:02.1]} 29. Qd7
{[%clk 0:00:23.9]} 29... Qb5 {[%clk 0:00:02.5]} 30. Qc7 {[%clk 0:00:22.9]} 30...
Bd8 {[%clk 0:00:02.1]} 31. Qc1 {[%clk 0:00:19.6]} 31... Ba5 {[%clk 0:00:02.6]}
32. Bxh6 {[%clk 0:00:18.7]} 32... Bxe1 {[%clk 0:00:02.2]} 33. Rxe1 {[%clk
0:00:17]} 33... gxh6 {[%clk 0:00:01.7]} 34. Qxh6 {[%clk 0:00:16.6]} 34... f6
{[%clk 0:00:02.3]} 35. Qg6+ {[%clk 0:00:16.2]} 35... Kf8 {[%clk 0:00:02.8]} 36.
Qh6+ {[%clk 0:00:15.9]} 36... Ke7 {[%clk 0:00:03.3]} 37. Rxe4 {[%clk 0:00:14.8]}
37... Qf1+ {[%clk 0:00:03.3]} 38. Ng1 {[%clk 0:00:14]} 38... Ra1 {[%clk
0:00:03.8]} 39. Qg7+ {[%clk 0:00:12.6]} 39... Kd8 {[%clk 0:00:04.3]} 40. Qxf6+
{[%clk 0:00:11.7]} 40... Kd7 {[%clk 0:00:04.9]} 41. Qg7+ {[%clk 0:00:07.9]}
41... Re7 {[%clk 0:00:05.4]} 42. Re1 {[%clk 0:00:05.8]} 42... Qxe1 {[%clk
0:00:05.4]} 43. Qxe7+ {[%clk 0:00:02.2]} 43... Kxe7 {[%clk 0:00:06.3]} 44. f6+
{[%clk 0:00:02.9]} 44... Kxf6 {[%clk 0:00:07]} 45. h4 {[%clk 0:00:02.7]} 45...
Qxg1# {[%clk 0:00:07.9]} 0-1

[Event "*** SCC Grand Prix: Titled Tuesday Blitz"]
[Site "Chess.com"]
[Date "2020.07.07"]
[Round "9"]
[White "VladaSviridova"]
[Black "GuuBol"]
[Result "0-1"]
[WhiteElo "2127"]
[BlackElo "2247"]
[TimeControl "180+1"]
[EndTime "11:47:16 PDT"]
[Termination "GuuBol won by checkmate"]

1. d4 {[%clk 0:03:00.1]} 1... d5 {[%clk 0:02:57.1]} 2. c4 {[%clk 0:03:00.1]}
2... e6 {[%clk 0:02:56.8]} 3. Nf3 {[%clk 0:03:00.1]} 3... c5 {[%clk 0:02:56.4]}
4. cxd5 {[%clk 0:02:59.7]} 4... exd5 {[%clk 0:02:56.4]} 5. g3 {[%clk 0:02:59.7]}
5... Nf6 {[%clk 0:02:53.4]} 6. Bg2 {[%clk 0:02:59.8]} 6... Be7 {[%clk
0:02:52.6]} 7. O-O {[%clk 0:02:59.5]} 7... O-O {[%clk 0:02:52.2]} 8. dxc5 {[%clk
0:02:58.5]} 8... Bxc5 {[%clk 0:02:50.9]} 9. Nc3 {[%clk 0:02:57.3]} 9... Nc6
{[%clk 0:02:45.7]} 10. a3 {[%clk 0:02:56.8]} 10... Re8 {[%clk 0:02:42.5]} 11. b4
{[%clk 0:02:56.6]} 11... Bf8 {[%clk 0:02:41.4]} 12. Bb2 {[%clk 0:02:56.2]} 12...
Bg4 {[%clk 0:02:38.4]} 13. h3 {[%clk 0:02:54.2]} 13... Be6 {[%clk 0:02:27]} 14.
e3 {[%clk 0:02:53.4]} 14... Qd7 {[%clk 0:02:24.4]} 15. Kh2 {[%clk 0:02:53.5]}
15... Rad8 {[%clk 0:02:24.1]} 16. Nd4 {[%clk 0:02:50.1]} 16... Ne5 {[%clk
0:02:19.2]} 17. Nce2 {[%clk 0:02:33.7]} 17... Nc4 {[%clk 0:02:11.8]} 18. Bc3
{[%clk 0:02:33.7]} 18... Ne4 {[%clk 0:02:11.9]} 19. Bxe4 {[%clk 0:02:13.6]}
19... dxe4 {[%clk 0:02:10.8]} 20. Nxe6 {[%clk 0:02:06.4]} 20... Qxe6 {[%clk
0:02:07.1]} 21. Bd4 {[%clk 0:02:06.5]} 21... Ne5 {[%clk 0:02:01.8]} 22. Ng1
{[%clk 0:01:57.6]} 22... Nc6 {[%clk 0:01:44.9]} 23. Ne2 {[%clk 0:01:53.7]} 23...
Rd5 {[%clk 0:01:31.4]} 24. Qc2 {[%clk 0:01:47.4]} 24... Qh6 {[%clk 0:01:25.3]}
25. Kg2 {[%clk 0:01:34.8]} 25... Bd6 {[%clk 0:01:19.1]} 26. Qc4 {[%clk 0:01:26]}
26... Rh5 {[%clk 0:01:13.7]} 27. Rh1 {[%clk 0:01:14.4]} 27... Qg6 {[%clk
0:01:13.8]} 28. Nf4 {[%clk 0:01:07.8]} 28... Bxf4 {[%clk 0:01:13.4]} 29. exf4
{[%clk 0:01:07]} 29... Rd8 {[%clk 0:01:00.8]} 30. Be3 {[%clk 0:01:05.7]} 30...
Ne7 {[%clk 0:00:51.2]} 31. Rad1 {[%clk 0:00:59.8]} 31... Re8 {[%clk 0:00:48.5]}
32. Qd4 {[%clk 0:00:42.3]} 32... Nf5 {[%clk 0:00:47.4]} 33. Qd7 {[%clk
0:00:42.2]} 33... f6 {[%clk 0:00:39.8]} 34. Rd5 {[%clk 0:00:32.4]} 34... Nh4+
{[%clk 0:00:35.3]} 35. Kf1 {[%clk 0:00:31]} 35... Nf3 {[%clk 0:00:34]} 36. Ke2
{[%clk 0:00:26.4]} 36... Rxd5 {[%clk 0:00:28.4]} 37. Qxd5+ {[%clk 0:00:26.1]}
37... Kh8 {[%clk 0:00:27.8]} 38. Rc1 {[%clk 0:00:24.9]} 38... h6 {[%clk
0:00:26.6]} 39. g4 {[%clk 0:00:23.4]} 39... Rf8 {[%clk 0:00:24.2]} 40. Rc7
{[%clk 0:00:22]} 40... Qe8 {[%clk 0:00:23.4]} 41. b5 {[%clk 0:00:19.3]} 41... b6
{[%clk 0:00:20.8]} 42. f5 {[%clk 0:00:18.5]} 42... Kh7 {[%clk 0:00:19.3]} 43.
Qd7 {[%clk 0:00:16.9]} 43... Qxd7 {[%clk 0:00:16.9]} 44. Rxd7 {[%clk 0:00:17.2]}
44... Rc8 {[%clk 0:00:17.5]} 45. Rxa7 {[%clk 0:00:16.1]} 45... Rc3 {[%clk
0:00:17.5]} 46. a4 {[%clk 0:00:15.1]} 46... Rb3 {[%clk 0:00:17.8]} 47. Bxb6
{[%clk 0:00:14.2]} 47... h5 {[%clk 0:00:16.4]} 48. gxh5 {[%clk 0:00:13.4]} 48...
Kh6 {[%clk 0:00:16.7]} 49. Be3+ {[%clk 0:00:12]} 49... Kxh5 {[%clk 0:00:16.5]}
50. b6 {[%clk 0:00:12.1]} 50... Rb1 {[%clk 0:00:16.2]} 51. Bd2 {[%clk
0:00:08.7]} 51... Rxb6 {[%clk 0:00:16.3]} 52. Ke3 {[%clk 0:00:07.5]} 52... Rb3+
{[%clk 0:00:16]} 53. Kxe4 {[%clk 0:00:06.8]} 53... Nxd2+ {[%clk 0:00:16.1]} 54.
Kf4 {[%clk 0:00:05.3]} 54... Rf3# {[%clk 0:00:15.7]} 0-1

[Event "*** SCC Grand Prix: Titled Tuesday Blitz"]
[Site "Chess.com"]
[Date "2020.07.07"]
[Round "9"]
[White "Klavdia_Nik"]
[Black "crossingthestreet"]
[Result "0-1"]
[WhiteElo "2053"]
[BlackElo "2417"]
[TimeControl "180+1"]
[EndTime "11:47:17 PDT"]
[Termination "crossingthestreet won on time"]

1. Nf3 {[%clk 0:02:14.9]} 1... d5 {[%clk 0:02:58.6]} 2. c4 {[%clk 0:02:14.5]}
2... e6 {[%clk 0:02:51.1]} 3. b3 {[%clk 0:02:15.3]} 3... Nf6 {[%clk 0:02:50.8]}
4. Bb2 {[%clk 0:02:15.2]} 4... Be7 {[%clk 0:02:50.7]} 5. g3 {[%clk 0:02:15.4]}
5... O-O {[%clk 0:02:50]} 6. Bg2 {[%clk 0:02:13.9]} 6... c5 {[%clk 0:02:49.9]}
7. O-O {[%clk 0:02:14]} 7... Nc6 {[%clk 0:02:50.1]} 8. d3 {[%clk 0:02:12.5]}
8... d4 {[%clk 0:02:46.3]} 9. Nbd2 {[%clk 0:02:09.7]} 9... e5 {[%clk 0:02:43.3]}
10. b4 {[%clk 0:02:09.1]} 10... cxb4 {[%clk 0:02:40.1]} 11. a3 {[%clk
0:02:08.8]} 11... a5 {[%clk 0:02:34.8]} 12. axb4 {[%clk 0:02:08]} 12... Bxb4
{[%clk 0:02:35.7]} 13. Ba3 {[%clk 0:02:05.4]} 13... Nd7 {[%clk 0:02:22.1]} 14.
Bxb4 {[%clk 0:02:00.9]} 14... Nxb4 {[%clk 0:02:23]} 15. Ne4 {[%clk 0:01:49]}
15... Ra6 {[%clk 0:02:06]} 16. Qa4 {[%clk 0:01:41.5]} 16... f5 {[%clk 0:01:38]}
17. Ned2 {[%clk 0:01:35.3]} 17... Nc5 {[%clk 0:01:37.1]} 18. Qa3 {[%clk
0:01:27.1]} 18... Qc7 {[%clk 0:01:28.3]} 19. Rfc1 {[%clk 0:01:26.8]} 19... Be6
{[%clk 0:01:24.5]} 20. Ng5 {[%clk 0:01:18.8]} 20... Bd7 {[%clk 0:00:55.5]} 21.
Nb3 {[%clk 0:01:17.1]} 21... Nxb3 {[%clk 0:00:42.7]} 22. Qxb3 {[%clk 0:01:15.8]}
22... h6 {[%clk 0:00:41.1]} 23. Nf3 {[%clk 0:00:56.9]} 23... Bc6 {[%clk
0:00:36.1]} 24. Ra3 {[%clk 0:00:37.6]} 24... Raa8 {[%clk 0:00:33.1]} 25. Rca1
{[%clk 0:00:30.6]} 25... b6 {[%clk 0:00:32.8]} 26. Rb1 {[%clk 0:00:29.1]} 26...
Kh7 {[%clk 0:00:26.4]} 27. Ne1 {[%clk 0:00:24.5]} 27... Rad8 {[%clk 0:00:26.2]}
28. Nc2 {[%clk 0:00:17.7]} 28... Bxg2 {[%clk 0:00:25.3]} 29. Kxg2 {[%clk
0:00:14.5]} 29... Qc6+ {[%clk 0:00:25.5]} 30. f3 {[%clk 0:00:13.9]} 30... Nxc2
{[%clk 0:00:25.6]} 31. Qxc2 {[%clk 0:00:13]} 31... e4 {[%clk 0:00:25.4]} 32. Rb5
{[%clk 0:00:12.5]} 32... exf3+ {[%clk 0:00:24.8]} 33. exf3 {[%clk 0:00:12.8]}
33... Rde8 {[%clk 0:00:25]} 34. Rd5 {[%clk 0:00:10.1]} 34... Re3 {[%clk
0:00:25]} 35. Qf2 {[%clk 0:00:08.7]} 35... Rfe8 {[%clk 0:00:24.8]} 36. Ra2
{[%clk 0:00:07.9]} 36... R8e5 {[%clk 0:00:24.9]} 37. Rxd4 {[%clk 0:00:07.1]}
37... a4 {[%clk 0:00:23.4]} 38. Rd5 {[%clk 0:00:05.8]} 38... a3 {[%clk
0:00:21.1]} 39. Rxe5 {[%clk 0:00:05.7]} 39... Rxe5 {[%clk 0:00:21.2]} 40. Rxa3
{[%clk 0:00:05.5]} 40... f4 {[%clk 0:00:20.5]} 41. g4 {[%clk 0:00:05.1]} 41...
h5 {[%clk 0:00:20.2]} 42. h3 {[%clk 0:00:05.6]} 42... b5 {[%clk 0:00:18.9]} 43.
cxb5 {[%clk 0:00:03.9]} 43... Rxb5 {[%clk 0:00:19.4]} 44. Ra2 {[%clk 0:00:03.6]}
44... Qd5 {[%clk 0:00:18.4]} 45. d4 {[%clk 0:00:03.6]} 45... Rb3 {[%clk
0:00:17.3]} 46. Qc2+ {[%clk 0:00:03.7]} 46... Kh6 {[%clk 0:00:13.8]} 47. Ra6+
{[%clk 0:00:02.2]} 47... Kg5 {[%clk 0:00:11.3]} 0-1